fUST/lending_fUST_20260417
["ID","MTS","AMOUNT","RATE_DAILY","PERIOD"]
[420649067,1776424238574,-500.0,6.539e-05,2]
[420649068,1776424238583,-500.0,6.539e-05,2]
[420649069,1776424238593,-500.0,6.539e-05,2]
[420649070,1776424238603,-500.0,6.539e-05,2]
[420649071,1776424238612,-612.4477091,6.539e-05,2]
[420649072,1776424238622,-500.0,6.539e-05,2]
[420649073,1776424238632,-500.0,6.539e-05,2]
[420649074,1776424238642,-500.0,6.539e-05,2]
[420649075,1776424238651,-500.0,6.539e-05,2]
[420649076,1776424238660,-500.0,6.539e-05,2]
[420649077,1776424238670,-500.0,6.539e-05,2]
[420649078,1776424238679,-500.0,6.539e-05,2]
[420649079,1776424238689,-500.0,6.539e-05,2]
[420649080,1776424238698,-500.0,6.539e-05,2]
[420649081,1776424238708,-500.0,6.539e-05,2]
[420649082,1776424238717,-500.0,6.539e-05,2]
[420649083,1776424238727,-500.0,6.539e-05,2]
[420649084,1776424238736,-500.0,6.539e-05,2]
[420649085,1776424238746,-500.0,6.539e-05,2]
[420649086,1776424238756,-500.0,6.539e-05,2]
[420649087,1776424238766,-440.46196354,6.539e-05,2]
[420649088,1776424238776,-500.0,6.539e-05,2]
[420649089,1776424238786,-500.0,6.539e-05,2]
[420649090,1776424238796,-500.0,6.539e-05,2]
[420649091,1776424238806,-500.0,6.539e-05,2]
[420649092,1776424238817,-500.0,6.539e-05,2]
[420649093,1776424238826,-500.0,6.539e-05,2]
[420649094,1776424238836,-500.0,6.539e-05,2]
[420649095,1776424238845,-500.0,6.539e-05,2]
[420649096,1776424238855,-246.14870319,6.539e-05,2]
[420649097,1776424238865,-500.0,6.539e-05,2]
[420649098,1776424238876,-500.0,6.539e-05,2]
[420649099,1776424238886,-500.0,6.539e-05,2]
[420649100,1776424238896,-500.0,6.539e-05,2]
[420649101,1776424238905,-500.0,6.539e-05,2]
[420649102,1776424238915,-500.0,6.539e-05,2]
[420649103,1776424238927,-500.0,6.539e-05,2]
[420649104,1776424238937,-500.0,6.539e-05,2]
[420649105,1776424238947,-500.0,6.539e-05,2]
[420649106,1776424238956,-500.0,6.539e-05,2]
[420649107,1776424238966,-500.0,6.539e-05,2]
[420649108,1776424238976,-500.0,6.539e-05,2]
[420649109,1776424238987,-17718.65828834,6.54e-05,2]
[420649112,1776424240979,-37687.4,6.54e-05,2]
[420649144,1776424243269,-37851.00742166,6.54e-05,2]
[420649145,1776424243280,-500.0,6.543e-05,2]
[420649146,1776424243290,-500.0,6.543e-05,2]
[420649147,1776424243300,-500.0,6.543e-05,2]
[420649148,1776424243310,-500.0,6.543e-05,2]
[420649149,1776424243319,-500.0,6.543e-05,2]
[420649150,1776424243328,-277.02696158,6.56e-05,2]
[420649151,1776424243338,-500.0,6.56e-05,2]
[420649152,1776424243348,-500.0,6.56e-05,2]
[420649153,1776424243357,-500.0,6.56e-05,2]
[420649154,1776424243367,-500.0,6.56e-05,2]
[420649155,1776424243376,-500.0,6.56e-05,2]
[420649156,1776424243386,-500.0,6.56e-05,2]
[420649157,1776424243395,-500.0,6.56e-05,2]
[420649158,1776424243405,-442.02867689,6.56e-05,2]
[420649159,1776424243415,-500.0,6.56e-05,2]
[420649160,1776424243425,-500.0,6.56e-05,2]
[420649161,1776424243434,-3349.35659227,6.562e-05,2]
[420649175,1776424246283,-355.3,6.56e-05,2]
[420649176,1776424246337,-266.07679231,6.56e-05,2]
[420649177,1776424246347,-621.37679231,6.56e-05,2]
[420649178,1776424246356,-621.37679231,6.56e-05,2]
[420649179,1776424246366,-621.37679231,6.56e-05,2]
[420649180,1776424246376,-137.23265666,6.56e-05,2]
[420649181,1776424246387,-484.14413565,6.56e-05,2]
[420649182,1776424246397,-621.37679231,6.56e-05,2]
[420649183,1776424246406,-621.37679231,6.56e-05,2]
[420649184,1776424246416,-621.37679231,6.56e-05,2]
[420649185,1776424246425,-31768.42761543,6.562e-05,2]
[420649186,1776424246598,-30440.92364321,6.562e-05,2]
[420649190,1776424311814,-5000.0,5.182e-05,2]
[420649191,1776424311837,-563.23,5.234e-05,2]
[420649192,1776424311863,-390.00728622,6.4e-05,2]
[420649193,1776424311888,-772.85723869,6.4e-05,2]
[420649194,1776424311910,-643.172,6.431e-05,2]
[420649195,1776424316419,2630.73347509,6.5e-05,2]
[420649196,1776424326410,-2369.26652491,6.5e-05,2]
[420649204,1776424517516,-633.9221455,6.507e-05,2]
[420649205,1776424517545,-513.0,6.507e-05,2]
[420649207,1776424537310,152.0,6.479e-05,7]
[420649208,1776424564238,450.58,5.234e-05,2]
[420649210,1776424618929,-203.58306603,6.554e-05,2]
[420649211,1776424618955,-513.0,6.554e-05,2]
[420649212,1776424618995,-317.22047229,6.6e-05,2]
[420649214,1776424627139,-155.0,6.759e-05,2]
[420649215,1776424627178,-600.0,6.796e-05,2]
[420649216,1776424635020,-517.0,6.847e-05,2]
[420649217,1776424635042,-325.0270819,6.847e-05,2]
[420649228,1776424850461,-152.0,6.486e-05,7]
[420649229,1776424850488,-848.0,6.867e-05,2]
[420649230,1776424852638,-352.0,6.867e-05,2]
[420649231,1776424852664,-517.0,6.867e-05,2]
[420649232,1776424852690,-131.0,6.868e-05,2]
[420649233,1776424854610,-68.51140471,6.868e-05,2]
[420649234,1776424854639,-931.48859529,6.868e-05,2]
[420649235,1776424855892,-1000.0,6.868e-05,2]
[420649236,1776424869817,-360.46,5.248e-05,2]
[420649237,1776424869842,-2.917,6.868e-05,2]
[420649239,1776424878108,151.91082806,0.00024658,120]
[420649330,1776425013926,-3065.59440471,3.94e-05,2]
[420649331,1776425013951,-2857.5548364,3.979e-05,2]
[420649336,1776425083692,300.0,0.00024657,120]
[420649347,1776425203544,1199.0,0.0002465,120]
[420649379,1776425432346,-288.37,5.248e-05,2]
[420649381,1776425432356,-152.0,6.197e-05,7]
[420649383,1776425432366,-480.0,6.936e-05,2]
[420649385,1776425432375,-195.52117662,6.937e-05,2]
[420649387,1776425432385,-646.23807172,6.937e-05,2]
[420649389,1776425432395,-2584.95228689,6.937e-05,2]
[420649391,1776425432404,-2280.01155525,6.937e-05,2]
[420649393,1776425432419,-2251.31959154,6.937e-05,2]
[420649398,1776425432458,-1119.71724561,6.937e-05,2]
[420649667,1776425439324,-159.27811045,6.937e-05,2]
[420649668,1776425439334,-388.6452267,6.937e-05,2]
[420649669,1776425439343,-1554.58090678,6.937e-05,2]
[420649670,1776425439353,-3494.30923322,6.937e-05,2]
[420649671,1776425439362,-600.0,7.075e-05,2]
[420649672,1776425439372,-716.92706555,7.075e-05,2]
[420649673,1776425439381,-646.51732155,7.182e-05,2]
[420649674,1776425439391,-633.9221455,7.235e-05,2]
[420649675,1776425439400,-329.19126568,7.4e-05,2]
[420649676,1776425439409,-324.42206904,7.4e-05,2]
[420649677,1776425439419,-152.0,7.409e-05,7]
[420649678,1776425439428,-500.0,7.413e-05,2]
[420649679,1776425439438,-500.0,7.413e-05,2]
[420649680,1776425439447,-500.0,7.413e-05,2]
[420649681,1776425439456,-500.0,7.413e-05,2]
[420649682,1776425439466,-500.27787001,7.413e-05,2]
[420649683,1776425439475,-500.0,7.413e-05,2]
[420649684,1776425439485,-500.0,7.413e-05,2]
[420649685,1776425439494,-158.27527439,7.413e-05,2]
[420649686,1776425439504,-158.27428202,7.413e-05,2]
[420649687,1776425439513,-500.0,7.413e-05,2]
[420649689,1776425439702,-500.0,7.413e-05,2]
[420649690,1776425439712,-500.0,7.413e-05,2]
[420649691,1776425439723,-500.0,7.436e-05,2]
[420649692,1776425439732,-500.0,7.436e-05,2]
[420649693,1776425439741,-500.0,7.436e-05,2]
[420649694,1776425439751,-500.46682599,7.436e-05,2]
[420649695,1776425439760,-500.0,7.436e-05,2]
[420649696,1776425439770,-500.0,7.436e-05,2]
[420649697,1776425439780,-500.0,7.436e-05,2]
[420649698,1776425439790,-209.65317885,7.436e-05,2]
[420649699,1776425439800,-500.0,7.436e-05,2]
[420649700,1776425439810,-500.0,7.436e-05,2]
[420649701,1776425439820,-500.0,7.436e-05,2]
[420649702,1776425439830,-500.27304334,7.436e-05,2]
[420649703,1776425439841,-500.0,7.436e-05,2]
[420649704,1776425439850,-274.98572415,7.436e-05,2]
[420649705,1776425439860,-500.0,7.436e-05,2]
[420649706,1776425439869,-500.0,7.436e-05,2]
[420649707,1776425439880,-361.24477091,7.436e-05,2]
[420649708,1776425439890,-500.0,7.436e-05,2]
[420649709,1776425439899,-500.0,7.436e-05,2]
[420649710,1776425439909,-500.0,7.436e-05,2]
[420649711,1776425439918,-500.0,7.436e-05,2]
[420649712,1776425439928,-414.8389986,7.436e-05,2]
[420649713,1776425439938,-500.0,7.436e-05,2]
[420649714,1776425439948,-500.0,7.436e-05,2]
[420649715,1776425439957,-218.02673933,7.436e-05,2]
[420649716,1776425439967,-500.0,7.436e-05,2]
[420649717,1776425439976,-500.0,7.436e-05,2]
[420649718,1776425439986,-500.0,7.436e-05,2]
[420649719,1776425439995,-500.0,7.436e-05,2]
[420649720,1776425440004,-500.0,7.436e-05,2]
[420649721,1776425440014,-500.0,7.436e-05,2]
[420649722,1776425440023,-500.0,7.436e-05,2]
[420649724,1776425440032,-500.0,7.436e-05,2]
[420649725,1776425440042,-500.0,7.436e-05,2]
[420649726,1776425440052,-500.0,7.436e-05,2]
[420649727,1776425440062,-500.0,7.436e-05,2]
[420649728,1776425440072,-500.0,7.436e-05,2]
[420649729,1776425440082,-206.80497454,7.436e-05,2]
[420649730,1776425440091,-500.0,7.437e-05,2]
[420649731,1776425440100,-500.0,7.437e-05,2]
[420649732,1776425440109,-500.0,7.437e-05,2]
[420649733,1776425440118,-500.0,7.437e-05,2]
[420649734,1776425440128,-500.0,7.437e-05,2]
[420649735,1776425440138,-500.0,7.437e-05,2]
[420649736,1776425440147,-500.0,7.437e-05,2]
[420649737,1776425440156,-500.0,7.437e-05,2]
[420649738,1776425440166,-500.0,7.437e-05,2]
[420649739,1776425440175,-500.0,7.437e-05,2]
[420649740,1776425440185,-500.0,7.437e-05,2]
[420649741,1776425440194,-500.0,7.437e-05,2]
[420649742,1776425440204,-500.0,7.437e-05,2]
[420649743,1776425440213,-429.11377495,7.437e-05,2]
[420649744,1776425440222,-500.0,7.437e-05,2]
[420649745,1776425440231,-252.53880467,7.437e-05,2]
[420649746,1776425440241,-500.0,7.437e-05,2]
[420649747,1776425440251,-500.0,7.437e-05,2]
[420649748,1776425440260,-500.0,7.437e-05,2]
[420649749,1776425440270,-500.0,7.437e-05,2]
[420649750,1776425440279,-500.0,7.437e-05,2]
[420649751,1776425440288,-500.0,7.437e-05,2]
[420649752,1776425440298,-500.0,7.437e-05,2]
[420649753,1776425440307,-500.0,7.437e-05,2]
[420649754,1776425440317,-619.62018927,7.437e-05,2]
[420649755,1776425440326,-75430.81987737,7.438e-05,2]
[420649756,1776425440343,-941.81791522,7.438e-05,2]
[420649757,1776425440355,-36880.41076958,7.438e-05,2]
[420649758,1776425440848,-657.01944389,7.438e-05,2]
[420649784,1776425441130,-1019.05201729,7.438e-05,2]
[420649786,1776425441141,-37725.6,7.438e-05,2]
[420649844,1776425443494,-5352.49999837,7.438e-05,2]
[420649845,1776425443605,-468.942,7.438e-05,2]
[420649846,1776425443663,-1179.67946753,7.438e-05,2]
[420649847,1776425443675,-3256.23330091,7.438e-05,2]
[420649851,1776425446532,-31246.11401575,7.438e-05,2]
[420649852,1776425446596,-45966.56643804,7.438e-05,2]
[420649853,1776425446756,-74259.82848203,7.438e-05,2]
[420649854,1776425446768,-276.5150003,7.438e-05,2]
[420649867,1776425462219,-5284.40732825,7.438e-05,2]
[420649879,1776425513655,10000.0,0.00024658,120]
[420649880,1776425519446,10000.0,0.00024658,120]
[420649884,1776425536064,2694.0,0.00024658,120]
[420650009,1776426281935,1199.0,0.0002465,120]
[420650020,1776426389369,626522.0,0.00024657,120]
[420650033,1776426532533,256.48305437,0.00015863,120]
[420650046,1776426591062,837.29,0.0002465,120]
[420650049,1776426632451,-230.7,5e-05,2]
[420650050,1776426632461,-198.30064338,5.298e-05,2]
[420650051,1776426632470,-183.040748,5.597e-05,2]
[420650052,1776426632480,-4387.96362722,5.915e-05,2]
[420650053,1776426632491,-1591.22491497,5.915e-05,2]
[420650054,1776426632500,-183.040748,5.989e-05,2]
[420650055,1776426632510,-300.0,6.082e-05,2]
[420650056,1776426632519,-601.278,6.083e-05,2]
[420650057,1776426632529,-1370.05177739,6.083e-05,2]
[420650058,1776426632608,-4564.33,6.083e-05,2]
[420650188,1776426640174,-7186.50516741,6.083e-05,2]
[420650189,1776426640186,-189.5850088,6.083e-05,2]
[420650190,1776426640195,-176.77716327,6.113e-05,2]
[420650191,1776426640205,-500.0,6.113e-05,2]
[420650192,1776426640215,-500.0,6.113e-05,2]
[420650193,1776426640226,-500.0,6.113e-05,2]
[420650195,1776426640235,-500.0,6.113e-05,2]
[420650197,1776426640244,-500.0,6.113e-05,2]
[420650198,1776426640254,-500.0,6.113e-05,2]
[420650199,1776426640264,-500.0,6.113e-05,2]
[420650200,1776426640273,-500.0,6.113e-05,2]
[420650201,1776426640283,-559.16072986,6.113e-05,2]
[420650202,1776426640292,-500.0,6.113e-05,2]
[420650203,1776426640302,-500.0,6.113e-05,2]
[420650204,1776426640311,-499.14082002,6.113e-05,2]
[420650205,1776426640321,-500.0,6.113e-05,2]
[420650206,1776426640331,-500.0,6.113e-05,2]
[420650207,1776426640341,-303.86287278,6.113e-05,2]
[420650208,1776426640350,-520.05527273,6.113e-05,2]
[420650209,1776426640359,-500.0,6.113e-05,2]
[420650210,1776426640368,-500.0,6.113e-05,2]
[420650211,1776426640380,-500.0,6.113e-05,2]
[420650212,1776426640390,-451.56247966,6.113e-05,2]
[420650213,1776426640399,-500.0,6.113e-05,2]
[420650214,1776426640408,-501.92628417,6.113e-05,2]
[420650215,1776426640418,-500.0,6.113e-05,2]
[420650216,1776426640427,-500.0,6.113e-05,2]
[420650217,1776426640437,-500.0,6.113e-05,2]
[420650218,1776426640446,-500.0,6.113e-05,2]
[420650219,1776426640456,-500.0,6.113e-05,2]
[420650220,1776426640465,-500.0,6.113e-05,2]
[420650221,1776426640474,-500.0,6.113e-05,2]
[420650222,1776426640484,-245.08408746,6.113e-05,2]
[420650223,1776426640493,-500.0,6.113e-05,2]
[420650224,1776426640502,-500.0,6.113e-05,2]
[420650225,1776426640511,-500.0,6.113e-05,2]
[420650226,1776426640521,-500.0,6.113e-05,2]
[420650227,1776426640530,-500.0,6.113e-05,2]
[420650228,1776426640540,-129902.30765915,6.114e-05,2]
[420650229,1776426640553,-61841.94304531,6.114e-05,2]
[420650230,1776426640562,-13100.6488036,6.115e-05,2]
[420650231,1776426640571,-181914.6899643,6.115e-05,2]
[420650232,1776426640581,-300.0,6.204e-05,2]
[420650233,1776426640590,-300.0,6.204e-05,2]
[420650234,1776426640599,-300.0,6.204e-05,2]
[420650235,1776426640608,-300.0,6.204e-05,2]
[420650236,1776426640617,-300.0,6.204e-05,2]
[420650237,1776426640626,-300.0,6.204e-05,2]
[420650238,1776426640636,-300.0,6.204e-05,2]
[420650239,1776426640646,-300.0,6.204e-05,2]
[420650240,1776426640655,-300.0,6.204e-05,2]
[420650241,1776426640664,-300.0,6.204e-05,2]
[420650242,1776426640673,-300.0,6.204e-05,2]
[420650243,1776426640683,-300.0,6.204e-05,2]
[420650244,1776426640691,-300.0,6.204e-05,2]
[420650245,1776426640701,-300.0,6.204e-05,2]
[420650246,1776426640711,-300.0,6.204e-05,2]
[420650247,1776426640720,-220.2009867,6.204e-05,2]
[420650248,1776426640729,-14525.47489194,6.215e-05,2]
[420650249,1776426640739,-14761.06273022,6.315e-05,2]
[420650250,1776426640748,-600.0,6.327e-05,2]
[420650251,1776426640757,-183.040748,6.382e-05,2]
[420650252,1776426640767,-220.20098666,6.464e-05,2]
[420650253,1776426640776,-196.38416,6.668e-05,2]
[420650254,1776426640786,-251.93589074,6.684e-05,2]
[420650255,1776426640795,-220.20098666,6.725e-05,2]
[420650256,1776426640804,-183.040748,6.775e-05,2]
[420650258,1776426640813,-720.0,6.96e-05,2]
[420650259,1776426640822,-220.20098666,6.985e-05,2]
[420650260,1776426640831,-227.37459556,7.1e-05,2]
[420650261,1776426640840,-393.24467173,7.1e-05,2]
[420650262,1776426640849,-162.73624821,7.135e-05,2]
[420650263,1776426640859,-445.202766,7.135e-05,2]
[420650264,1776426640868,-163.09061892,7.135e-05,2]
[420650265,1776426640877,-3000.0,7.135e-05,2]
[420650266,1776426640886,-537.6845,7.135e-05,2]
[420650267,1776426640896,-152.39743511,7.135e-05,2]
[420650268,1776426640905,-3000.0,7.135e-05,2]
[420650269,1776426640914,-3000.0,7.135e-05,2]
[420650270,1776426640923,-3000.0,7.135e-05,2]
[420650271,1776426640932,-3000.0,7.135e-05,2]
[420650272,1776426640942,-3000.0,7.135e-05,2]
[420650273,1776426640952,-3000.0,7.135e-05,2]
[420650274,1776426640962,-3000.0,7.135e-05,2]
[420650275,1776426640973,-3000.0,7.135e-05,2]
[420650276,1776426640982,-3000.0,7.135e-05,2]
[420650277,1776426640991,-3000.0,7.135e-05,2]
[420650278,1776426641000,-3000.0,7.135e-05,2]
[420650279,1776426641010,-3000.0,7.135e-05,2]
[420650280,1776426641018,-3000.0,7.135e-05,2]
[420650282,1776426641027,-3000.0,7.135e-05,2]
[420650283,1776426641036,-3000.0,7.135e-05,2]
[420650284,1776426641045,-3000.0,7.135e-05,2]
[420650285,1776426641054,-3000.0,7.135e-05,2]
[420650286,1776426641064,-156.89658255,7.135e-05,2]
[420650287,1776426641073,-537.6845,7.135e-05,2]
[420650288,1776426641082,-2150.738,7.135e-05,2]
[420650289,1776426641090,-557.5788265,7.19e-05,2]
[420650290,1776426641099,-415.00660297,7.2e-05,2]
[420650291,1776426641108,-836.93740741,7.2e-05,2]
[420650292,1776426641117,-500.0,7.213e-05,2]
[420650293,1776426641126,-500.0,7.213e-05,2]
[420650294,1776426641136,-501.02329528,7.213e-05,2]
[420650295,1776426641145,-500.0,7.213e-05,2]
[420650296,1776426641156,-500.0,7.213e-05,2]
[420650297,1776426641165,-158.27527514,7.213e-05,2]
[420650298,1776426641174,-160.07446932,7.213e-05,2]
[420650299,1776426641184,-158.25481532,7.213e-05,2]
[420650300,1776426641193,-500.0,7.213e-05,2]
[420650301,1776426641202,-500.0,7.213e-05,2]
[420650302,1776426641211,-500.0,7.213e-05,2]
[420650303,1776426641222,-151.0,7.235e-05,2]
[420650304,1776426641231,-151.0,7.235e-05,2]
[420650305,1776426641240,-151.0,7.235e-05,2]
[420650306,1776426641249,-578.20924308,7.245e-05,2]
[420650307,1776426641259,-220.20098666,7.245e-05,2]
[420650308,1776426641268,-233.99475919,7.298e-05,2]
[420650309,1776426641278,-599.60298507,7.3e-05,2]
[420650310,1776426641287,-500.0,7.313e-05,2]
[420650311,1776426641297,-500.0,7.313e-05,2]
[420650312,1776426641306,-500.0,7.313e-05,2]
[420650313,1776426641315,-500.0,7.313e-05,2]
[420650314,1776426641324,-199.689414,7.336e-05,2]
[420650315,1776426641334,-199.689414,7.336e-05,2]
[420650316,1776426641344,-199.689414,7.336e-05,2]
[420650317,1776426641354,-199.689414,7.336e-05,2]
[420650318,1776426641365,-199.689414,7.338e-05,2]
[420650319,1776426641374,-199.689414,7.338e-05,2]
[420650320,1776426641384,-199.689414,7.338e-05,2]
[420650321,1776426641393,-199.689414,7.338e-05,2]
[420650322,1776426641403,-151.0,7.338e-05,2]
[420650323,1776426641413,-151.0,7.338e-05,2]
[420650324,1776426641423,-151.0,7.338e-05,2]
[420650325,1776426641432,-160.0,7.338e-05,2]
[420650326,1776426641441,-160.0,7.338e-05,2]
[420650327,1776426641451,-161.31850006,7.338e-05,2]
[420650328,1776426641460,-621.78829552,7.355e-05,2]
[420650329,1776426641470,-644.79446246,7.41e-05,2]
[420650330,1776426641480,-199.689414,7.433e-05,2]
[420650331,1776426641489,-199.689414,7.433e-05,2]
[420650332,1776426641498,-199.689414,7.433e-05,2]
[420650333,1776426641508,-199.689414,7.433e-05,2]
[420650334,1776426641517,-151.0,7.433e-05,2]
[420650335,1776426641526,-151.0,7.433e-05,2]
[420650336,1776426641535,-151.0,7.433e-05,2]
[420650337,1776426641547,-425.50470428,7.436e-05,2]
[420650338,1776426641556,-1702.01881713,7.436e-05,2]
[420650339,1776426641567,-3829.54233854,7.436e-05,2]
[420650340,1776426641576,-6801.26719325,7.436e-05,2]
[420650341,1776426641585,-2682.54877896,7.436e-05,2]
[420650342,1776426641595,-669.96655755,7.436e-05,2]
[420650343,1776426641605,-1273.1423521,7.438e-05,2]
[420650344,1776426641614,-49640.7866023,7.438e-05,2]
[420650345,1776426641623,-316.9610728,7.438e-05,2]
[420650346,1776426641632,-199.689414,7.438e-05,2]
[420650347,1776426641642,-199.689414,7.438e-05,2]
[420650348,1776426641651,-199.689414,7.438e-05,2]
[420650349,1776426641661,-199.689414,7.438e-05,2]
[420650350,1776426641670,-151.0,7.438e-05,2]
[420650351,1776426641679,-151.0,7.438e-05,2]
[420650352,1776426641688,-250.78233,7.438e-05,2]
[420650353,1776426641697,-668.65185757,7.465e-05,2]
[420650354,1776426641707,-151.0,7.487e-05,2]
[420650355,1776426641716,-693.3919763,7.52e-05,2]
[420650356,1776426641726,-719.04747942,7.575e-05,2]
[420650357,1776426641735,-745.65223616,7.63e-05,2]
[420650358,1776426641745,-500.0,7.633e-05,2]
[420650359,1776426641754,-864.0,7.656e-05,2]
[420650360,1776426641764,-455.6840661,7.682e-05,2]
[420650361,1776426641774,-461.67526834,7.683e-05,2]
[420650362,1776426641783,-2230.315306,7.683e-05,2]
[420650363,1776426641792,-773.2413689,7.685e-05,2]
[420650364,1776426641801,-801.85129955,7.74e-05,2]
[420650365,1776426641811,-998.90117926,7.761e-05,2]
[420650366,1776426641820,-1000.0,7.761e-05,2]
[420650367,1776426641829,-500.0,7.761e-05,2]
[420650368,1776426641838,-501.60568996,7.761e-05,2]
[420650369,1776426641847,-1000.0,7.761e-05,2]
[420650370,1776426641856,-831.51979763,7.795e-05,2]
[420650371,1776426641865,-169.7165573,7.802e-05,2]
[420650372,1776426641877,-645.0,7.807e-05,2]
[420650373,1776426641886,-739.0,7.807e-05,2]
[420650374,1776426641894,-184.0,7.807e-05,2]
[420650375,1776426641902,-441.214,7.807e-05,2]
[420650376,1776426641910,-1408.0,7.807e-05,2]
[420650377,1776426641919,-772186.18249125,7.84e-05,2]
[420650378,1776426642116,-206265.45201581,7.84e-05,2]
[420650379,1776426642128,-57333.46141362,7.84e-05,2]
[420650380,1776426642139,-874.14444355,7.84e-05,2]
[420650381,1776426642160,-5278.84619538,7.84e-05,2]
[420650382,1776426642168,-862.28603014,7.85e-05,2]
[420650383,1776426642177,-1000.0,7.861e-05,2]
[420650384,1776426642185,-161.24705798,7.861e-05,2]
[420650385,1776426642194,-1000.0,7.861e-05,2]
[420650386,1776426642203,-800.0,7.887e-05,2]
[420650387,1776426642211,-800.0,7.891e-05,2]
[420650388,1776426642220,-800.0,7.908e-05,2]
[420650389,1776426642229,-15950.30098029,7.911e-05,2]
[420650390,1776426642238,-151.0,7.911e-05,2]
[420650391,1776426642247,-151.0,7.911e-05,2]
[420650392,1776426642256,-199.689414,7.925e-05,2]
[420650393,1776426642265,-199.689414,7.925e-05,2]
[420650394,1776426642274,-199.689414,7.925e-05,2]
[420650395,1776426642283,-199.68941212,7.925e-05,2]
[420650396,1776426642292,-166.0,7.925e-05,2]
[420650397,1776426642300,-340.0,7.925e-05,2]
[420650398,1776426642309,-340.0,7.925e-05,2]
[420650399,1776426642318,-166.0,7.925e-05,2]
[420650400,1776426642326,-340.0,7.925e-05,2]
[420650401,1776426642335,-264.31968197,7.925e-05,2]
[420650402,1776426642344,-155.0,7.925e-05,2]
[420650403,1776426642353,-340.0,7.925e-05,2]
[420650404,1776426642361,-155.0,7.925e-05,2]
[420650405,1776426642370,-155.0,7.925e-05,2]
[420650406,1776426642379,-155.0,7.925e-05,2]
[420650407,1776426642387,-45.48249944,7.925e-05,2]
[420650408,1776426642608,-397.19,7.925e-05,2]
[420650433,1776426644108,-500.0,7.438e-05,2]
[420650434,1776426644118,-205.32750056,7.925e-05,2]
[420650435,1776426644128,-155.0,7.925e-05,2]
[420650436,1776426644138,-648.0,7.925e-05,2]
[420650437,1776426644147,-155.0,7.925e-05,2]
[420650438,1776426644157,-648.0,7.925e-05,2]
[420650439,1776426644166,-155.0,7.925e-05,2]
[420650440,1776426644176,-648.0,7.925e-05,2]
[420650441,1776426644186,-154.54117095,7.925e-05,2]
[420650442,1776426644195,-648.0,7.925e-05,2]
[420650443,1776426644205,-648.0,7.925e-05,2]
[420650444,1776426644214,-648.0,7.925e-05,2]
[420650445,1776426644224,-648.0,7.925e-05,2]
[420650446,1776426644233,-648.0,7.925e-05,2]
[420650447,1776426644243,-648.0,7.925e-05,2]
[420650448,1776426644252,-648.0,7.925e-05,2]
[420650449,1776426644262,-648.0,7.925e-05,2]
[420650451,1776426644271,-648.0,7.925e-05,2]
[420650453,1776426644280,-648.0,7.925e-05,2]
[420650455,1776426644290,-648.0,7.925e-05,2]
[420650456,1776426644299,-648.0,7.925e-05,2]
[420650457,1776426644308,-179.0,7.925e-05,2]
[420650458,1776426644318,-179.0,7.925e-05,2]
[420650459,1776426644327,-180.53134067,7.925e-05,2]
[420650460,1776426644337,-300.89819239,7.925e-05,2]
[420650461,1776426644346,-648.0,7.925e-05,2]
[420650462,1776426644355,-648.0,7.925e-05,2]
[420650463,1776426644366,-648.0,7.925e-05,2]
[420650464,1776426644376,-340.0,7.925e-05,2]
[420650465,1776426644385,-340.0,7.925e-05,2]
[420650466,1776426644394,-648.0,7.925e-05,2]
[420650467,1776426644404,-648.0,7.925e-05,2]
[420650468,1776426644414,-340.0,7.925e-05,2]
[420650469,1776426644423,-648.0,7.925e-05,2]
[420650470,1776426644433,-340.0,7.925e-05,2]
[420650471,1776426644443,-648.0,7.925e-05,2]
[420650472,1776426644452,-340.0,7.925e-05,2]
[420650473,1776426644462,-648.0,7.925e-05,2]
[420650474,1776426644472,-340.0,7.925e-05,2]
[420650475,1776426644482,-648.0,7.925e-05,2]
[420650476,1776426644491,-340.0,7.925e-05,2]
[420650477,1776426644501,-648.0,7.925e-05,2]
[420650478,1776426644510,-340.0,7.925e-05,2]
[420650479,1776426644520,-340.0,7.925e-05,2]
[420650480,1776426644529,-648.0,7.925e-05,2]
[420650481,1776426644539,-340.0,7.925e-05,2]
[420650482,1776426644549,-648.0,7.925e-05,2]
[420650483,1776426644558,-340.0,7.925e-05,2]
[420650484,1776426644568,-648.0,7.925e-05,2]